[Event "Chelyabinskiy variant-A 2021"]
[Site "Chelyabinsk"]
[Date "2021.03.29"]
[Round "8.4"]
[White "Suleymenov, Alisher"]
[Black "Fedorov, Alexei"]
[Result "1/2-1/2"]
[ECO "E71"]
[WhiteElo "2440"]
[BlackElo "2529"]
[Annotator "ChessBase"]
[PlyCount "62"]
[EventDate "2021.03.23"]
[EventType "swiss"]
[EventCountry "RUS"]
[SourceTitle "playchess.com"]
[Source "ChessBase"]
[SourceQuality "1"]
[TimeControl "5400+30"]

1. d4 {[%emt 0:00:34]} Nf6 {[%emt 0:00:00]} 2. c4 {[%emt 0:00:04]} g6 {[%emt 0:00:00]} 3. Nc3 {[%emt 0:00:04]} Bg7 {[%emt 0:00:00]} 4. e4 {[%emt 0:00:03]} d6 {[%emt 0:00:00]} 5. h3 {[%emt 0:00:03]} Nbd7 {[%emt 0:01:22]} 6. Be3 {[%emt 0:00:05]} e5 {[%emt 0:00:08]} 7. d5 {[%emt 0:00:04]} Nc5 {[%emt 0:00:32]} 8. Qc2 {[%emt 0:00:06]} a5 {[%emt 0:02:06]} 9. g4 {[%emt 0:00:10]} h5 {[%emt 0:00:50]} 10. g5 {[%emt 0:00:33]} Nfd7 {[%emt 0:00:06]} 11. O-O-O {[%emt 0:09:19]} O-O {[%emt 0:00:37]} 12. Nf3 {[%emt 0:02:28]} a4 {[%emt 0:06:21]} 13. Be2 {[%emt 0:12:20]} c6 {[%emt 0:05:58]} 14. Kb1 {[%emt 0:06:15]} Qa5 {[%emt 0:07:10]} 15. Nh4 {[%emt 0:02:16]} Nb6 {[%emt 0:10:26]} 16. Rhg1 {[%emt 0:16:40]} Bd7 {[%emt 0:21:04]} 17. Nf5 {[%emt 0:11:33]} gxf5 {[%emt 0:04:34]} 18. exf5 {[%emt 0:01:11]} a3 {[%emt 0:16:45]} 19. Bxc5 {[%emt 0:14:55]} dxc5 {[%emt 0:00:53]} 20. f6 axb2 {[%emt 0:00:49]} 21. g6 {[%emt 0:10:02]} Na4 {[%emt 0:08:44]} 22. Nxa4 {[%emt 0:08:03]} Qxa4 {[%emt 0:04:28]} 23. Qxa4 {[%emt 0:00:55]} Rxa4 {[%emt 0:00:05]} 24. fxg7 {[%emt 0:00:28]} Bf5+ {[%emt 0:02:35]} 25. Bd3 {[%emt 0:03:44]} Bxd3+ {[%emt 0:00:28]} 26. Rxd3 {[%emt 0:00:01]} Kxg7 {[%emt 0:00:29]} 27. gxf7+ {[%emt 0:00:02]} Kxf7 {[%emt 0:01:29]} 28. Rb3 {[%emt 0:01:17]} cxd5 {[%emt 0:03:05]} 29. Rxb7+ {[%emt 0:00:12]} Ke6 {[%emt 0:00:09]} 30. Rb6+ {[%emt 0:00:33]} Kf5 {[%emt 0:00:07]} 31. cxd5 {[%emt 0:00:20]} Rd4 {[%emt 0:02:15]} 1/2-1/2

[Event "Chelyabinskiy variant-A 2021"]
[Site "Chelyabinsk"]
[Date "2021.03.29"]
[Round "8.5"]
[White "Khanin, Semen"]
[Black "Shuvalova, Polina"]
[Result "1-0"]
[ECO "C92"]
[WhiteElo "2506"]
[BlackElo "2476"]
[Annotator "ChessBase"]
[PlyCount "61"]
[EventDate "2021.03.23"]
[EventType "swiss"]
[EventCountry "RUS"]
[SourceTitle "playchess.com"]
[Source "ChessBase"]
[SourceQuality "1"]
[TimeControl "5400+30"]

1. e4 {[%emt 0:00:00]} e5 {[%emt 0:00:00]} 2. Nf3 {[%emt 0:00:00]} Nc6 {[%emt 0:00:00]} 3. Bb5 {[%emt 0:00:00]} a6 {[%emt 0:00:00]} 4. Ba4 {[%emt 0:00:00]} Nf6 {[%emt 0:00:00]} 5. O-O {[%emt 0:00:00]} Be7 {[%emt 0:00:02]} 6. Re1 {[%emt 0:00:00]} b5 {[%emt 0:00:21]} 7. Bb3 {[%emt 0:00:02]} d6 {[%emt 0:01:18]} 8. c3 {[%emt 0:00:05]} O-O {[%emt 0:00:07]} 9. h3 {[%emt 0:00:03]} Re8 {[%emt 0:02:03]} 10. d4 {[%emt 0:00:32]} Bb7 {[%emt 0:00:21]} 11. Nbd2 {[%emt 0:00:06]} Bf8 {[%emt 0:00:06]} 12. a3 {[%emt 0:00:12]} g6 {[%emt 0:02:44]} 13. Ba2 {[%emt 0:01:12]} Bg7 {[%emt 0:01:10]} 14. b4 {[%emt 0:00:44]} a5 {[%emt 0:08:42]} 15. d5 {[%emt 0:01:15]} Ne7 {[%emt 0:01:44]} 16. Nb3 {[%emt 0:00:18]} axb4 {[%emt 0:00:10]} 17. cxb4 {[%emt 0:00:51]} Rc8 {[%emt 0:08:04]} 18. Na5 {[%emt 0:02:32]} Ba8 {[%emt 0:00:08]} 19. a4 {[%emt 0:10:29]} c6 {[%emt 0:10:47]} 20. dxc6 {[%emt 0:03:50]} Nxc6 {[%emt 0:02:10]} 21. axb5 {[%emt 0:09:47]} Nxb4 {[%emt 0:04:51]} 22. Bxf7+ {[%emt 0:05:46]} Kxf7 {[%emt 0:00:08]} 23. Qb3+ {[%emt 0:00:05]} d5 {[%emt 0:00:57]} 24. Qxb4 {[%emt 0:01:12]} Nxe4 {[%emt 0:04:05]} 25. b6 {[%emt 0:02:35]} Qe7 {[%emt 0:04:11]} 26. Rxe4 {[%emt 0:01:35]} dxe4 {[%emt 0:02:17]} 27. Qb3+ {[%emt 0:00:45]} Kf8 {[%emt 0:02:01]} 28. Ba3 {[%emt 0:00:04]} exf3 {[%emt 0:04:22]} 29. b7 {[%emt 0:01:07]} Bxb7 {[%emt 0:00:06]} 30. Nxb7 {[%emt 0:00:21]} e4 {[%emt 0:00:39]} 31. Rd1 {[%emt 0:01:30]} 1-0

[Event "Chelyabinskiy variant-A 2021"]
[Site "Chelyabinsk"]
[Date "2021.03.29"]
[Round "8.8"]
[White "Petrov, Nikita"]
[Black "Girya, Olga"]
[Result "1/2-1/2"]
[ECO "C82"]
[WhiteElo "2571"]
[BlackElo "2432"]
[Annotator "ChessBase"]
[PlyCount "93"]
[EventDate "2021.03.23"]
[EventType "swiss"]
[EventCountry "RUS"]
[SourceTitle "playchess.com"]
[Source "ChessBase"]
[SourceQuality "1"]
[TimeControl "5400+30"]

1. e4 {[%emt 0:00:00]} e5 {[%emt 0:05:32]} 2. Nf3 {[%emt 0:00:04]} Nc6 {[%emt 0:00:05]} 3. Bb5 {[%emt 0:01:00]} a6 {[%emt 0:00:11]} 4. Ba4 {[%emt 0:00:08]} Nf6 {[%emt 0:00:05]} 5. O-O {[%emt 0:00:40]} Nxe4 {[%emt 0:00:08]} 6. d4 {[%emt 0:00:46]} b5 {[%emt 0:00:10]} 7. Bb3 {[%emt 0:00:07]} d5 {[%emt 0:00:09]} 8. dxe5 {[%emt 0:00:21]} Be6 {[%emt 0:00:05]} 9. c3 {[%emt 0:01:14]} Bc5 {[%emt 0:00:40]} 10. Nbd2 {[%emt 0:01:25]} O-O {[%emt 0:00:46]} 11. Bc2 {[%emt 0:00:53]} Nxf2 {[%emt 0:00:44]} 12. Rxf2 {[%emt 0:00:04]} Bxf2+ {[%emt 0:00:10]} 13. Kxf2 {[%emt 0:00:07]} f6 {[%emt 0:00:08]} 14. Nf1 {[%emt 0:00:47]} fxe5 {[%emt 0:01:00]} 15. Kg1 {[%emt 0:00:02]} Qd6 {[%emt 0:02:07]} 16. Be3 {[%emt 0:03:11]} Rad8 {[%emt 0:03:58]} 17. Ng3 {[%emt 0:10:57]} Bg4 {[%emt 0:13:39]} 18. h3 {[%emt 0:44:20]} e4 {[%emt 0:20:02]} 19. Nxe4 {[%emt 0:00:37]} Bxf3 {[%emt 0:04:12]} 20. Nxd6 {[%emt 0:00:49]} Bxd1 {[%emt 0:00:05]} 21. Rxd1 {[%emt 0:00:12]} cxd6 {[%emt 0:07:23]} 22. Rxd5 {[%emt 0:02:12]} Ne5 {[%emt 0:06:34]} 23. Bd4 {[%emt 0:06:58]} Nc4 {[%emt 0:07:45]} 24. b3 {[%emt 0:02:14]} Ne5 {[%emt 0:00:23]} 25. b4 {[%emt 0:01:47]} Nc6 {[%emt 0:09:39]} 26. Bb6 {[%emt 0:01:05]} Ne7 {[%emt 0:01:18]} 27. Rd1 {[%emt 0:09:45]} Rc8 {[%emt 0:00:24]} 28. Rxd6 {[%emt 0:01:07]} Rxc3 {[%emt 0:00:48]} 29. Bb3+ {[%emt 0:00:07]} Rxb3 {[%emt 0:05:31]} 30. axb3 {[%emt 0:00:03]} Nc8 {[%emt 0:00:06]} 31. Rc6 {[%emt 0:00:34]} Nxb6 {[%emt 0:00:10]} 32. Rxb6 {[%emt 0:00:05]} Rf4 {[%emt 0:00:05]} 33. Rxa6 {[%emt 0:00:20]} Rxb4 {[%emt 0:00:08]} 34. Ra3 {[%emt 0:02:14]} Kf7 {[%emt 0:01:26]} 35. Kf2 {[%emt 0:00:58]} h5 {[%emt 0:02:45]} 36. Ke3 {[%emt 0:02:54]} g5 {[%emt 0:00:10]} 37. Kd3 {[%emt 0:01:00]} g4 {[%emt 0:02:20]} 38. Kc3 {[%emt 0:02:09]} gxh3 {[%emt 0:02:41]} 39. gxh3 {[%emt 0:00:21]} Rh4 {[%emt 0:00:07]} 40. Ra7+ {[%emt 0:00:11]} Ke6 {[%emt 0:00:58]} 41. Rb7 {[%emt 0:00:19]} Rxh3+ {[%emt 0:03:47]} 42. Kb4 {[%emt 0:00:15]} Rf3 {[%emt 0:00:24]} 43. Rxb5 {[%emt 0:01:18]} Rf4+ {[%emt 0:00:16]} 44. Kc3 {[%emt 0:01:14]} h4 {[%emt 0:01:03]} 45. Rh5 {[%emt 0:01:17]} Rf3+ {[%emt 0:00:29]} 46. Kd2 {[%emt 0:01:01]} Rxb3 {[%emt 0:00:20]} 47. Rxh4 {[%emt 0:00:06]} 1/2-1/2

[Event "Chelyabinskiy variant-A 2021"]
[Site "Chelyabinsk"]
[Date "2021.03.29"]
[Round "8.10"]
[White "Kosic, Dragan"]
[Black "Utegaliyev, Azamat"]
[Result "0-1"]
[ECO "A48"]
[WhiteElo "2445"]
[BlackElo "2507"]
[Annotator "ChessBase"]
[PlyCount "90"]
[EventDate "2021.03.23"]
[EventType "swiss"]
[EventCountry "RUS"]
[SourceTitle "playchess.com"]
[Source "ChessBase"]
[SourceQuality "1"]
[TimeControl "5400+30"]

1. d4 {[%emt 0:00:00]} Nf6 {[%emt 0:00:46]} 2. Nf3 {[%emt 0:01:48]} g6 {[%emt 0:00:45]} 3. c4 {[%emt 0:00:13]} Bg7 {[%emt 0:02:42]} 4. Nc3 {[%emt 0:00:17]} d6 {[%emt 0:00:51]} 5. e4 {[%emt 0:00:43]} Bg4 {[%emt 0:00:35]} 6. Be3 {[%emt 0:03:36]} Bxf3 {[%emt 0:10:05]} 7. Qxf3 {[%emt 0:06:02]} Nfd7 {[%emt 0:01:24]} 8. Qd1 {[%emt 0:03:22]} O-O {[%emt 0:06:11]} 9. Qd2 {[%emt 0:02:36]} Nc6 {[%emt 0:14:21]} 10. d5 {[%emt 0:01:57]} Nce5 {[%emt 0:00:06]} 11. Be2 {[%emt 0:00:29]} Nf6 {[%emt 0:00:04]} 12. h3 {[%emt 0:01:03]} c6 {[%emt 0:00:46]} 13. O-O {[%emt 0:11:50]} cxd5 {[%emt 0:01:14]} 14. exd5 {[%emt 0:02:37]} a6 {[%emt 0:04:53]} 15. f4 {[%emt 0:04:01]} Ned7 {[%emt 0:00:13]} 16. Rac1 {[%emt 0:00:56]} Qa5 {[%emt 0:00:56]} 17. a3 {[%emt 0:02:51]} Rfc8 {[%emt 0:01:45]} 18. b4 {[%emt 0:03:07]} Qd8 {[%emt 0:00:55]} 19. Rfd1 {[%emt 0:01:09]} h5 {[%emt 0:04:46]} 20. Bf1 {[%emt 0:04:25]} Rc7 {[%emt 0:17:40]} 21. Rc2 {[%emt 0:07:56]} Rac8 {[%emt 0:05:55]} 22. Rdc1 {[%emt 0:01:18]} Kh7 {[%emt 0:03:38]} 23. Na4 {[%emt 0:01:38]} b5 {[%emt 0:01:07]} 24. Nb6 {[%emt 0:11:49]} Rb8 {[%emt 0:00:08]} 25. Nxd7 {[%emt 0:03:09]} Qxd7 {[%emt 0:00:06]} 26. Bd3 {[%emt 0:05:36]} e6 {[%emt 0:02:39]} 27. dxe6 {[%emt 0:00:32]} Qxe6 {[%emt 0:00:06]} 28. Re1 {[%emt 0:05:25]} Re7 {[%emt 0:00:59]} 29. Bf2 {[%emt 0:00:53]} Qd7 {[%emt 0:00:10]} 30. Rxe7 {[%emt 0:00:26]} Qxe7 {[%emt 0:00:01]} 31. f5 {[%emt 0:00:54]} gxf5 {[%emt 0:03:07]} 32. Qg5 {[%emt 0:00:53]} Qe5 {[%emt 0:02:34]} 33. Qxf5+ {[%emt 0:00:22]} Kg8 {[%emt 0:02:33]} 34. c5 {[%emt 0:01:51]} Ne8 {[%emt 0:06:42]} 35. c6 {[%emt 0:02:44]} Nc7 {[%emt 0:00:45]} 36. Re2 {[%emt 0:01:13]} Qxf5 {[%emt 0:00:28]} 37. Bxf5 {[%emt 0:00:06]} Be5 {[%emt 0:00:04]} 38. Bd7 {[%emt 0:02:20]} Kg7 {[%emt 0:01:35]} 39. Ba7 {[%emt 0:00:16]} Ra8 {[%emt 0:00:04]} 40. Bb6 {[%emt 0:00:54]} Nd5 {[%emt 0:00:04]} 41. Bf2 {[%emt 0:00:46]} a5 {[%emt 0:00:48]} 42. bxa5 {[%emt 0:01:35]} Rxa5 {[%emt 0:00:01]} 43. Rd2 {[%emt 0:01:00]} b4 {[%emt 0:04:04]} 44. c7 {[%emt 0:02:16]} Nxc7 {[%emt 0:00:32]} 45. Bb6 {[%emt 0:00:04]} Rd5 {[%emt 0:00:56]} 0-1

[Event "Chelyabinskiy variant-A 2021"]
[Site "Chelyabinsk"]
[Date "2021.03.29"]
[Round "8.11"]
[White "Nesterov, Arseniy"]
[Black "Zarubitski, Viachaslau"]
[Result "1-0"]
[ECO "D11"]
[WhiteElo "2476"]
[BlackElo "2446"]
[Annotator "ChessBase"]
[PlyCount "117"]
[EventDate "2021.03.23"]
[EventType "swiss"]
[EventCountry "RUS"]
[SourceTitle "playchess.com"]
[Source "ChessBase"]
[SourceQuality "1"]
[TimeControl "5400+30"]

1. d4 {[%emt 0:00:00]} d5 {[%emt 0:00:00]} 2. c4 {[%emt 0:00:00]} c6 {[%emt 0:00:00]} 3. Nf3 {[%emt 0:00:00]} Nf6 {[%emt 0:00:07]} 4. g3 {[%emt 0:00:00]} e6 {[%emt 0:06:02]} 5. Bg2 {[%emt 0:00:11]} Bb4+ {[%emt 0:00:36]} 6. Bd2 {[%emt 0:02:03]} Be7 {[%emt 0:00:29]} 7. O-O {[%emt 0:02:55]} b6 {[%emt 0:00:16]} 8. Qc2 {[%emt 0:06:21]} O-O {[%emt 0:01:29]} 9. Rd1 {[%emt 0:02:38]} Bb7 {[%emt 0:00:45]} 10. Bf4 {[%emt 0:00:28]} Na6 {[%emt 0:03:55]} 11. a3 {[%emt 0:07:17]} c5 {[%emt 0:23:42]} 12. dxc5 {[%emt 0:05:59]} Nxc5 {[%emt 0:00:30]} 13. cxd5 {[%emt 0:06:10]} exd5 {[%emt 0:06:45]} 14. Nc3 {[%emt 0:00:37]} Rc8 {[%emt 0:07:49]} 15. Bh3 {[%emt 0:12:59]} Ne6 {[%emt 0:00:02]} 16. Be5 {[%emt 0:01:18]} Bd6 {[%emt 0:06:20]} 17. Qf5 {[%emt 0:14:33]} Bxe5 {[%emt 0:00:44]} 18. Qxe5 {[%emt 0:00:16]} Qe8 {[%emt 0:09:46]} 19. Nd4 {[%emt 0:07:10]} Nxd4 {[%emt 0:00:52]} 20. Qxd4 {[%emt 0:04:04]} Rc4 {[%emt 0:00:11]} 21. Qd3 {[%emt 0:00:04]} Qe5 {[%emt 0:05:21]} 22. Bg2 {[%emt 0:00:59]} Rfc8 {[%emt 0:02:19]} 23. Nxd5 {[%emt 0:05:34]} Bxd5 {[%emt 0:03:57]} 24. Bxd5 {[%emt 0:00:07]} Nxd5 {[%emt 0:01:59]} 25. Qxd5 {[%emt 0:00:06]} Qxd5 {[%emt 0:04:43]} 26. Rxd5 {[%emt 0:00:04]} Rc2 {[%emt 0:01:25]} 27. Rad1 {[%emt 0:00:27]} g6 {[%emt 0:01:46]} 28. R5d2 {[%emt 0:00:41]} h5 {[%emt 0:00:13]} 29. h4 {[%emt 0:00:23]} a5 {[%emt 0:00:59]} 30. Kf1 {[%emt 0:01:32]} b5 {[%emt 0:00:18]} 31. e3 {[%emt 0:00:07]} b4 {[%emt 0:00:24]} 32. axb4 {[%emt 0:00:08]} axb4 {[%emt 0:00:03]} 33. Ke2 {[%emt 0:00:05]} Kg7 {[%emt 0:03:43]} 34. Rxc2 {[%emt 0:00:14]} Rxc2+ {[%emt 0:00:02]} 35. Rd2 {[%emt 0:00:04]} Rc6 {[%emt 0:02:58]} 36. Kf3 {[%emt 0:00:40]} Rf6+ {[%emt 0:01:19]} 37. Kg2 {[%emt 0:00:06]} Rb6 {[%emt 0:00:37]} 38. b3 {[%emt 0:00:34]} Kf6 {[%emt 0:00:19]} 39. Rd4 {[%emt 0:00:03]} Ke5 {[%emt 0:00:10]} 40. Kf3 {[%emt 0:00:04]} f6 {[%emt 0:01:10]} 41. g4 {[%emt 0:01:37]} hxg4+ {[%emt 0:00:49]} 42. Rxg4 {[%emt 0:01:12]} f5 {[%emt 0:00:45]} 43. Rd4 {[%emt 0:00:11]} Rb8 {[%emt 0:00:19]} 44. Ke2 {[%emt 0:00:05]} Kf6 {[%emt 0:00:20]} 45. Kd3 {[%emt 0:00:13]} g5 {[%emt 0:00:05]} 46. hxg5+ {[%emt 0:00:10]} Kxg5 {[%emt 0:00:01]} 47. Kc4 {[%emt 0:00:13]} Rc8+ {[%emt 0:00:12]} 48. Kxb4 {[%emt 0:00:05]} Rc2 {[%emt 0:00:03]} 49. Rf4 {[%emt 0:00:08]} Kf6 {[%emt 0:00:21]} 50. Kb5 {[%emt 0:00:22]} Ke5 {[%emt 0:00:04]} 51. b4 {[%emt 0:00:04]} Rb2 {[%emt 0:00:24]} 52. Kc5 {[%emt 0:00:12]} Rc2+ {[%emt 0:00:03]} 53. Kb6 {[%emt 0:00:03]} Rb2 {[%emt 0:00:04]} 54. b5 {[%emt 0:00:04]} Rc2 {[%emt 0:00:02]} 55. Kb7 {[%emt 0:00:07]} Rb2 {[%emt 0:00:04]} 56. b6 {[%emt 0:00:03]} Rc2 {[%emt 0:00:06]} 57. Kb8 {[%emt 0:00:06]} Rb2 {[%emt 0:00:14]} 58. b7 {[%emt 0:00:11]} Ra2 {[%emt 0:00:11]} 59. Rb4 {[%emt 0:00:39]} 1-0

[Event "Chelyabinskiy variant-A 2021"]
[Site "Chelyabinsk"]
[Date "2021.03.29"]
[Round "8.12"]
[White "Gleizerov, Evgeny"]
[Black "Harutjunyan, Gevorg"]
[Result "1/2-1/2"]
[ECO "E97"]
[WhiteElo "2468"]
[BlackElo "2439"]
[Annotator "ChessBase"]
[PlyCount "49"]
[EventDate "2021.03.23"]
[EventType "swiss"]
[EventCountry "RUS"]
[SourceTitle "playchess.com"]
[Source "ChessBase"]
[SourceQuality "1"]
[TimeControl "5400+30"]

1. d4 {[%emt 0:00:00]} Nf6 {[%emt 0:00:00]} 2. c4 {[%emt 0:00:00]} g6 {[%emt 0:00:00]} 3. Nc3 {[%emt 0:00:00]} Bg7 {[%emt 0:00:00]} 4. e4 {[%emt 0:00:00]} d6 {[%emt 0:00:00]} 5. Nf3 {[%emt 0:00:00]} O-O {[%emt 0:00:09]} 6. Be2 {[%emt 0:00:00]} e5 {[%emt 0:00:08]} 7. O-O {[%emt 0:00:00]} Nc6 {[%emt 0:00:07]} 8. d5 {[%emt 0:00:00]} Ne7 {[%emt 0:00:05]} 9. Nd2 {[%emt 0:00:02]} Ne8 {[%emt 0:00:08]} 10. b4 {[%emt 0:00:05]} f5 {[%emt 0:00:12]} 11. c5 {[%emt 0:03:13]} Nf6 {[%emt 0:00:58]} 12. f3 {[%emt 0:00:46]} f4 {[%emt 0:00:20]} 13. Nc4 {[%emt 0:00:06]} g5 {[%emt 0:00:10]} 14. g4 {[%emt 0:03:39]} h5 {[%emt 0:02:10]} 15. h3 {[%emt 0:00:08]} Rf7 {[%emt 0:00:37]} 16. a4 {[%emt 0:07:44]} Bf8 {[%emt 0:00:41]} 17. Kf2 {[%emt 0:00:26]} Ng6 {[%emt 0:01:38]} 18. Ba3 {[%emt 0:00:11]} Rh7 {[%emt 0:00:15]} 19. Rh1 {[%emt 0:00:04]} Be7 {[%emt 0:01:12]} 20. Qg1 {[%emt 0:05:37]} Kg7 {[%emt 0:05:01]} 21. Ke1 {[%emt 0:02:19]} Qh8 {[%emt 0:05:59]} 22. Kd2 {[%emt 0:01:03]} Ne8 {[%emt 0:01:56]} 23. Nb2 {[%emt 0:36:15]} Bd7 {[%emt 0:11:40]} 24. Nd3 {[%emt 0:01:03]} a6 {[%emt 0:05:17]} 25. Kc2 {[%emt 0:03:22]} 1/2-1/2

[Event "Chelyabinskiy variant-A 2021"]
[Site "Chelyabinsk"]
[Date "2021.03.29"]
[Round "8.13"]
[White "Sitnikov, Anton"]
[Black "Bryakin, Mikhail"]
[Result "1-0"]
[ECO "B13"]
[WhiteElo "2437"]
[BlackElo "2464"]
[Annotator "ChessBase"]
[PlyCount "133"]
[EventDate "2021.03.23"]
[EventType "swiss"]
[EventCountry "RUS"]
[SourceTitle "playchess.com"]
[Source "ChessBase"]
[SourceQuality "1"]
[TimeControl "5400+30"]

1. e4 {[%emt 0:00:00]} c6 {[%emt 0:00:00]} 2. d4 {[%emt 0:00:27]} d5 {[%emt 0:00:08]} 3. exd5 {[%emt 0:00:30]} cxd5 {[%emt 0:00:07]} 4. Bd3 {[%emt 0:00:30]} Nc6 {[%emt 0:00:05]} 5. c3 {[%emt 0:00:30]} Qc7 {[%emt 0:00:04]} 6. Ne2 {[%emt 0:00:39]} Bg4 {[%emt 0:00:32]} 7. f3 {[%emt 0:00:44]} Bd7 {[%emt 0:10:22]} 8. Na3 {[%emt 0:49:07]} a6 {[%emt 0:02:08]} 9. Qb3 {[%emt 0:03:30]} Nf6 {[%emt 0:01:45]} 10. Bf4 {[%emt 0:00:30]} Qc8 {[%emt 0:00:39]} 11. Nb1 {[%emt 0:10:47]} Na5 {[%emt 0:03:55]} 12. Qc2 {[%emt 0:02:49]} Bb5 {[%emt 0:02:31]} 13. O-O {[%emt 0:04:10]} e6 {[%emt 0:00:35]} 14. Nc1 {[%emt 0:09:45]} Be7 {[%emt 0:01:17]} 15. Qe2 {[%emt 0:00:47]} Bxd3 {[%emt 0:03:37]} 16. Nxd3 {[%emt 0:00:18]} h6 {[%emt 0:00:20]} 17. Bg3 {[%emt 0:00:57]} O-O {[%emt 0:03:06]} 18. Nd2 {[%emt 0:01:15]} Re8 {[%emt 0:02:57]} 19. Bh4 {[%emt 0:05:47]} Nc4 {[%emt 0:07:20]} 20. Nxc4 {[%emt 0:01:32]} Qxc4 {[%emt 0:00:18]} 21. a3 {[%emt 0:00:56]} b5 {[%emt 0:02:30]} 22. Qd2 {[%emt 0:00:10]} Nd7 {[%emt 0:03:34]} 23. Bxe7 {[%emt 0:00:16]} Rxe7 {[%emt 0:00:03]} 24. Rae1 {[%emt 0:00:17]} Rae8 {[%emt 0:01:56]} 25. f4 {[%emt 0:04:03]} f6 {[%emt 0:01:35]} 26. Re3 {[%emt 0:00:55]} Qc8 {[%emt 0:11:34]} 27. Rfe1 {[%emt 0:00:23]} f5 {[%emt 0:00:20]} 28. g4 {[%emt 0:01:16]} Nf6 {[%emt 0:00:58]} 29. g5 {[%emt 0:01:06]} Ne4 {[%emt 0:16:09]} 30. Qg2 {[%emt 0:00:06]} hxg5 {[%emt 0:00:30]} 31. fxg5 {[%emt 0:00:06]} e5 {[%emt 0:00:04]} 32. Nxe5 {[%emt 0:01:05]} Rxe5 {[%emt 0:00:17]} 33. dxe5 {[%emt 0:00:03]} Rxe5 {[%emt 0:01:00]} 34. h4 {[%emt 0:01:09]} Qc5 {[%emt 0:04:33]} 35. Qf3 {[%emt 0:00:18]} g6 {[%emt 0:07:41]} 36. Qf4 {[%emt 0:00:39]} d4 {[%emt 0:00:18]} 37. b4 {[%emt 0:00:18]} Qb6 {[%emt 0:08:24]} 38. cxd4 {[%emt 0:00:43]} Qxd4 {[%emt 0:00:05]} 39. Kh2 {[%emt 0:00:32]} Kg7 {[%emt 0:02:31]} 40. R1e2 {[%emt 0:00:18]} Qd5 {[%emt 0:02:37]} 41. Rc2 {[%emt 0:00:44]} Re7 {[%emt 0:00:01]} 42. Rce2 {[%emt 0:00:26]} Kh7 {[%emt 0:01:00]} 43. Qf3 {[%emt 0:00:21]} Rc7 {[%emt 0:00:33]} 44. Rxe4 {[%emt 0:00:36]} fxe4 {[%emt 0:00:05]} 45. Qxe4 {[%emt 0:00:07]} Qxe4 {[%emt 0:01:28]} 46. Rxe4 {[%emt 0:00:05]} Rc2+ {[%emt 0:00:14]} 47. Kg3 {[%emt 0:01:23]} Rc3+ {[%emt 0:00:12]} 48. Kg4 {[%emt 0:00:31]} Rxa3 {[%emt 0:00:24]} 49. Re7+ {[%emt 0:00:05]} Kg8 {[%emt 0:00:05]} 50. h5 {[%emt 0:00:20]} Rb3 {[%emt 0:01:10]} 51. h6 {[%emt 0:01:05]} Rxb4+ {[%emt 0:00:08]} 52. Kf3 {[%emt 0:00:13]} Rb1 {[%emt 0:00:57]} 53. Rg7+ {[%emt 0:00:13]} Kh8 {[%emt 0:00:07]} 54. Rxg6 {[%emt 0:00:03]} Rg1 {[%emt 0:01:17]} 55. Kf4 {[%emt 0:00:18]} Rf1+ {[%emt 0:00:10]} 56. Ke5 {[%emt 0:00:16]} Re1+ {[%emt 0:00:15]} 57. Kf6 {[%emt 0:00:33]} Rf1+ {[%emt 0:00:04]} 58. Ke7 {[%emt 0:00:18]} Rg1 {[%emt 0:00:34]} 59. Kf7 {[%emt 0:00:23]} b4 {[%emt 0:00:40]} 60. Rg8+ {[%emt 0:00:21]} Kh7 {[%emt 0:00:01]} 61. Rg7+ {[%emt 0:00:09]} Kh8 {[%emt 0:00:03]} 62. Rg8+ Kh7 63. Rg7+ {[%emt 0:03:06]} Kh8 {[%emt 0:00:02]} 64. g6 {[%emt 0:00:05]} Rf1+ {[%emt 0:00:41]} 65. Ke8 {[%emt 0:00:09]} b3 {[%emt 0:02:13]} 66. Rf7 {[%emt 0:00:07]} Re1+ {[%emt 0:01:38]} 67. Kf8 {[%emt 0:00:10]} 1-0

[Event "Chelyabinskiy variant-A 2021"]
[Site "Chelyabinsk"]
[Date "2021.03.30"]
[Round "9.1"]
[White "Ponkratov, Pavel"]
[Black "Drygalov, Andrey"]
[Result "1-0"]
[ECO "B90"]
[WhiteElo "2619"]
[BlackElo "2500"]
[Annotator "ChessBase"]
[PlyCount "53"]
[EventDate "2021.03.23"]
[EventType "swiss"]
[EventCountry "RUS"]
[SourceTitle "playchess.com"]
[Source "ChessBase"]
[SourceQuality "1"]
[TimeControl "5400+30"]

1. e4 {[%emt 0:00:00]} c5 {[%emt 0:00:00]} 2. Nf3 {[%emt 0:00:00]} d6 {[%emt 0:00:00]} 3. d4 {[%emt 0:00:00]} cxd4 {[%emt 0:00:00]} 4. Nxd4 {[%emt 0:00:00]} Nf6 {[%emt 0:00:00]} 5. Nc3 {[%emt 0:00:00]} a6 {[%emt 0:00:00]} 6. h3 {[%emt 0:00:00]} e5 {[%emt 0:00:05]} 7. Nf3 {[%emt 0:00:00]} Be7 {[%emt 0:08:55]} 8. g4 {[%emt 0:01:11]} h6 {[%emt 0:25:01]} 9. Rg1 {[%emt 0:01:10]} Nc6 {[%emt 0:06:13]} 10. g5 {[%emt 0:02:38]} hxg5 {[%emt 0:01:34]} 11. Nxg5 {[%emt 0:00:04]} Qc7 {[%emt 0:04:13]} 12. Bc4 {[%emt 0:08:48]} Nd8 {[%emt 0:02:31]} 13. Bb3 {[%emt 0:08:42]} Ne6 {[%emt 0:02:28]} 14. Qe2 {[%emt 0:20:35]} Nxg5 {[%emt 0:04:30]} 15. Bxg5 {[%emt 0:00:06]} Rxh3 {[%emt 0:03:46]} 16. Bxf6 {[%emt 0:09:05]} Bxf6 {[%emt 0:00:13]} 17. Nd5 {[%emt 0:00:04]} Qa5+ {[%emt 0:10:47]} 18. c3 {[%emt 0:00:10]} Bd8 {[%emt 0:09:19]} 19. Rxg7 {[%emt 0:10:10]} Be6 {[%emt 0:03:42]} 20. O-O-O {[%emt 0:02:05]} Rc8 {[%emt 0:02:07]} 21. Kb1 {[%emt 0:00:23]} Qc5 {[%emt 0:01:07]} 22. f4 {[%emt 0:01:08]} exf4 {[%emt 0:02:20]} 23. Nxf4 {[%emt 0:01:03]} Re3 {[%emt 0:00:38]} 24. Qg2 {[%emt 0:03:05]} Bxb3 {[%emt 0:01:38]} 25. axb3 {[%emt 0:00:05]} Qe5 {[%emt 0:00:08]} 26. Qg4 {[%emt 0:02:57]} Qxe4+ {[%emt 0:04:59]} 27. Ka2 {[%emt 0:00:05]} 1-0

[Event "Chelyabinskiy variant-A 2021"]
[Site "Chelyabinsk"]
[Date "2021.03.30"]
[Round "9.2"]
[White "Shomoev, Anton"]
[Black "Khanin, Semen"]
[Result "1/2-1/2"]
[ECO "C67"]
[WhiteElo "2563"]
[BlackElo "2506"]
[Annotator "ChessBase"]
[PlyCount "27"]
[EventDate "2021.03.23"]
[EventType "swiss"]
[EventCountry "RUS"]
[SourceTitle "playchess.com"]
[Source "ChessBase"]
[SourceQuality "1"]
[TimeControl "5400+30"]

1. e4 {[%emt 0:00:00]} e5 {[%emt 0:00:00]} 2. Nf3 {[%emt 0:00:00]} Nc6 {[%emt 0:00:00]} 3. Bb5 {[%emt 0:00:00]} Nf6 {[%emt 0:00:00]} 4. O-O {[%emt 0:00:00]} Nxe4 {[%emt 0:00:00]} 5. Re1 {[%emt 0:00:48]} Nd6 {[%emt 0:00:00]} 6. a4 {[%emt 0:00:05]} Be7 {[%emt 0:02:20]} 7. Nc3 {[%emt 0:00:03]} e4 {[%emt 0:07:18]} 8. Nxe4 {[%emt 0:05:16]} Nxe4 {[%emt 0:00:12]} 9. Rxe4 {[%emt 0:00:06]} O-O {[%emt 0:00:56]} 10. d4 {[%emt 0:00:26]} a6 {[%emt 0:06:54]} 11. Bd3 {[%emt 0:01:49]} d5 {[%emt 0:03:39]} 12. Re3 {[%emt 0:02:26]} Bg4 {[%emt 0:04:56]} 13. c3 {[%emt 0:04:35]} Bg5 {[%emt 0:07:27]} 14. Re1 {[%emt 0:15:36]} 1/2-1/2